Cogmind - Beta 16 @@@ ROGUE MODE // 2025.10.26 @ 18:14:13 Player: Naughtyusername Result: Destroyed by G-34 Mercenary with Small Laser Performance ------------- Evolutions (1) 500 Regions Visited (3) 600 Robots Destroyed (48) 240 Value Destroyed (1169) 1169 Prototype IDs (5) 100 Alien Tech Used (0) 0 Bonus (60) 60 TOTAL SCORE: 2669 Bonus ------- Follower Combat Kills 60 Cogmind --------- Core Integrity 0/400 Matter 290/300 Energy 100/100 System Corruption 1% Temperature Cool (6) Movement Core (50) Location -9/Materials Parts ------- > --- POWER (1) -------- (None) > --- PROPULSION (4) --- (None) > --- UTILITY (2) ------ Melee Analysis Suite > --- WEAPON (2) ------- Katana > --- INVENTORY (5) ---- Light Armor Plating Beam Rifle Autogun Rocket Launcher Hammer Peak State ------------ > --- POWER ------------ Heavy Ion Engine > --- PROPULSION ------- Hover Unit Backup Propulsion I Backup Propulsion I > --- UTILITY ---------- Medium Storage Unit Light Armor Plating > --- WEAPON ----------- Autogun Flail > --- INVENTORY -------- Light Ion Engine Improved Ion Engine Heat Sink Seismic Detector Core Shielding Beam Rifle Assault Rifle Rocket Launcher [Rating: 13] Favorites ----------- Power Backup Power I Engine Backup Power I Propulsion Hover Unit Hover Unit Hover Unit Utility Medium Storage Unit Device Seismic Detector Storage Medium Storage Unit Processor Melee Analysis Suite Protection Core Shielding Weapon Assault Rifle Energy Cannon Advanced Beam Cannon Ballistic Gun Assault Rifle Ballistic Cannon Light Cannon Impact Weapon Flail Slashing Weapon Katana Build | -11 -10 -10 -9 ------- Run | Yrd Mat Min Mat Slots Evolved 2 | . . . 2 Power . | . . . . Propulsion 2 | . . . 2 Utility . | . . . . Weapon . | . . . . Parts Attached 32 | . 14 2 16 Power 4 | . 1 . 3 Engine 4 | . 1 . 3 Core . | . . . . Reactor . | . . . . Propulsion 8 | . 3 1 4 Treads . | . . . . Leg . | . . . . Wheel . | . . . . Hover 8 | . 3 1 4 Flight . | . . . . Utility 9 | . 4 1 4 Device 3 | . 1 1 1 Storage 1 | . 1 . . Processor 1 | . . . 1 Hackware . | . . . . Protection 4 | . 2 . 2 Artifact . | . . . . Weapon 11 | . 6 . 5 Energy Gun . | . . . . Energy Cannon 2 | . . . 2 Ballistic Gun 6 | . 5 . 1 Ballistic Cannon 1 | . 1 . . Launcher . | . . . . Special Weapon . | . . . . Impact Weapon 1 | . . . 1 Slashing Weapon 1 | . . . 1 Piercing Weapon . | . . . . Special Melee Weapon . | . . . . Unidentified Prototypes 1 | . . . 1 Corrupted Parts 1 | . . . 1 System Corruption 1 | . . . 1 Parts Lost 15 | . 1 1 13 Power 1 | . . . 1 Propulsion 8 | . . 1 7 Utility 3 | . . . 3 Weapon 3 | . 1 . 2 Highest Loss Streak 3 | . 1 1 3 To Critical Strikes . | . . . . Average Backups 8 | 2 6 9 7 Power 1 | . 1 1 1 Propulsion 3 | . 2 5 . Utility 2 | . 2 3 3 Weapon 1 | 1 . . 2 Tool/Special . | . . . . Unused Backups 6 | 1 1 . 4 Power 1 | . . . 1 Propulsion . | . . . . Utility 2 | . 1 . 1 Weapon 3 | 1 . . 2 Tool/Special . | . . . . Average Slot Usage (%) 79 | . 48 100 74 Engine 10 | . 5 14 8 Hover 22 | . 11 28 23 Device 7 | . 1 12 5 Storage 10 | . 4 14 8 Protection 3 | . 7 1 5 Ballistic Gun 19 | . 16 28 11 Impact Weapon 2 | . . . 6 Peak Build Rating 13 | . 8 8 13 Average Rating 7 | . 3 7 9 On Entrance 3 | . . 8 7 Avg Prop Armor Cover (%) 15 | . 15 . . Naked Turns 100 | . 100 . . Heaviest Build 21 | . 16 16 21 Greatest Support 26 | 3 12 12 26 Greatest Overweight (x) 2 | . 1 2 2 Average Overweight (x) . | . . 1 . Largest Inventory Capacity 10 | 5 10 10 10 Average Capacity 8 | 5 6 10 9 Most Carried 10 | 4 10 10 10 Average Carried 8 | 3 6 9 7 Final Capacity 10 | 5 10 10 5 Final Carried 10 | 4 10 9 5 Class Distribution -------------------- 100% | Mutant Dominant Class ---------------- Mutant | -10/Materials Mutant | -10/Mines Mutant | -9/Materials Resources | -11 -10 -10 -9 ----------- Run | Yrd Mat Min Mat Matter Collected 974 | 189 337 118 330 Remotely . | . . . . Salvage Created 1797 | . 286 311 1200 Parts 96 | . 29 17 50 Haulers Intercepted 3 | . . . 3 Recyclers Shooed . | . . . . Parts Field Recycled . | . . . . Retrieved Matter . | . . . . Parts Self-Destructed . | . . . . Prevented . | . . . . Parts Restored . | . . . . Kills | -11 -10 -10 -9 ------- Run | Yrd Mat Min Mat Combat Hostiles Destroyed 34 | . 10 3 21 Melee 9 | . . . 9 Guns 15 | . 9 3 3 Cannons 6 | . 1 . 5 Classes Destroyed 12 | . 3 2 7 Worker 1 | . 1 . . Builder 2 | . . . 2 Tunneler 2 | . . 1 1 Hauler 3 | . . . 3 Recycler 3 | . . 3 . Operator 2 | . . . 2 Watcher 1 | . . . 1 Swarmer 9 | . 6 3 . Grunt 14 | . 4 . 10 Brawler 3 | . . . 3 Duelist 1 | . . . 1 Sentry 7 | . . . 7 Best Kill Streak 6 | . 5 3 6 Combat Bots Only 5 | . 5 3 5 Max Kills in Single Turn 2 | . 2 2 1 Gunslinging 1 | . 1 1 . Exploded . | . . . . Melee 1 | . . . 1 Uniques/NPCs Destroyed . | . . . . Combat | -11 -10 -10 -9 -------- Run | Yrd Mat Min Mat Hostile Shots Fired 177 | . 48 16 113 Missed 38 | . 9 5 24 Hits 139 | . 39 11 89 Melee 5 | . . . 5 Projectile 134 | . 39 11 84 Critical Strikes 4 | . 2 . 2 Damage Taken 1820 | . 432 133 1255 Core 624 | . 211 11 402 Absorbed by Shields . | . . . . Redirected to Shielding 27 | . 2 . 25 Core Remaining (%) 55 | 100 . 11 . Volleys Fired 78 | . 23 18 37 Largest 2 | . 2 2 2 Hottest 91 | . 50 40 91 Shots Fired 138 | . 46 36 56 Gun 115 | . 45 36 34 Cannon 23 | . 1 . 22 Launcher . | . . . . Special . | . . . . Kinetic 116 | . 46 36 34 Thermal 18 | . . . 18 Explosive . | . . . . Electromagnetic 4 | . . . 4 Robot Hit Streak 11 | . 11 4 9 Robot Miss Streak 6 | . 6 6 2 Penetration Max . | . . . . Secondary Targets 6 | . 5 1 . Max Gunslinging Chain 1 | . 1 1 . Shots Hit Robots 128 | . 28 17 83 Core Hits 50 | . 16 10 24 Critical Kills 2 | . . . 2 Critical Parts Destroyed 5 | . . . 5 Critical Strikes 8 | . . . 8 Meltdown 1 | . . . 1 Smash 7 | . . . 7 Melee Attacks 55 | . . . 55 Impact 51 | . . . 51 Slashing 4 | . . . 4 Piercing . | . . . . Sneak Attacks 6 | . . . 6 Combat Hostiles . | . . . . Follow-up Attacks . | . . . . Damage Inflicted 2867 | . 333 245 2289 Guns 915 | . 312 245 358 Cannons 361 | . 16 . 345 Explosions 47 | . . . 47 Melee 1539 | . . . 1539 Ramming 5 | . 5 . . Kinetic 931 | . 328 245 358 Thermal 334 | . . . 334 Explosive . | . . . . Electromagnetic 58 | . . . 58 Impact 1456 | . . . 1456 Slashing 83 | . . . 83 Piercing . | . . . . Highest Corruption 1 | . . . 1 Average Corruption 1 | . . . 1 Corruption Purged . | . . . . Corruption Blocked . | . . . . Overload Shots . | . . . . Overflow Damage 453 | . . . 453 Projectiles . | . . . . Explosions 17 | . . . 17 Melee 436 | . . . 436 Knockbacks 8 | . . . 8 Impact 7 | . . . 7 Kinetic . | . . . . Secondary 1 | . . . 1 Self-Inflicted Damage 2 | . 2 . . Shots . | . . . . Rammed 2 | . 2 . . Targets Rammed 2 | . 2 . . Kicked . | . . . . Crushed . | . . . . Highest Temperature 186 | . 15 . 186 Average Temperature 64 | . 9 . 68 Received Heat Transfer 723 | . 186 57 480 Siege Activations . | . . . . Martial Activations . | . . . . Shielding Activations . | . . . . Robots Disrupted . | . . . . Combat Hostiles . | . . . . Robots Corrupted 10 | . . . 10 Combat Hostiles 3 | . . . 3 Parts Fried 14 | . . . 14 Impact Corruptions 21 | . . . 21 Robots Melted 1 | . . . 1 Combat Hostiles 1 | . . . 1 Parts Melted 3 | . . . 3 Heat Transferred 568 | . . . 568 Parts Sabotaged . | . . . . Parts Stolen . | . . . . Parts Stripped . | . . . . Power Chain Reactions 1 | . . . 1 Alert | -11 -10 -10 -9 ------- Run | Yrd Mat Min Mat Maximum Alert Level 1 | . 1 . 1 Low Security (%) 92 | 100 98 100 79 Level 1 7 | . 1 . 20 Level 2 . | . . . . Level 3 . | . . . . Level 4 . | . . . . Level 5 . | . . . . High Security . | . . . . Max Security . | . . . . Peak Influence 324 | . 205 75 324 Initial 44 | . . 44 5 Average 76 | . 114 14 124 Influence Increases 1254 | . 338 147 769 Destroy 0b10 Robot/C 720 | . 200 100 420 Destroy 0b10 Robot/NC 70 | . 5 20 45 Destroy Leader 198 | . 30 20 148 Allied During Kill 7 | . . 7 . Successful Hack 59 | . 27 . 32 Disable Machine 15 | . . . 15 Destroy Structure 5 | . 1 . 4 Partial Spotted 30 | . . . 30 Lose Combat Pursuer 150 | . 75 . 75 Influence Decreases 936 | . 223 247 466 Entered New Map 81 | . . 71 10 Time Decay 680 | . 213 141 326 Lost Part 150 | . 10 10 130 Lost Ally 25 | . . 25 . Squads Dispatched 3 | . 1 . 2 Investigation 2 | . 1 . 1 Extermination . | . . . . Reinforcement 1 | . . . 1 Assault . | . . . . Garrison . | . . . . Intercept . | . . . . Searches Triggered . | . . . . Construction Impeded . | . . . . Haulers Reinforced . | . . . . Active Scanning Responses . | . . . . Cargo Convoy Interrupts . | . . . . Stealth | -11 -10 -10 -9 --------- Run | Yrd Mat Min Mat Distress Signals 2 | . . . 2 Communications Jammed . | . . . . Distress Signals . | . . . . Times Spotted 61 | . 18 8 35 Peak Tracking Total 9 | . 9 3 7 Tactical Retreats 7 | . 3 . 4 Traps | -11 -10 -10 -9 ------- Run | Yrd Mat Min Mat Traps Triggered 1 | . 1 . . Indirectly . | . . . . Trap Hack Attempts . | . . . . Triggered . | . . . . Disarmed . | . . . . Reprogrammed . | . . . . Reused . | . . . . Traps Extracted . | . . . . Installed . | . . . . Triggered . | . . . . Machines | -11 -10 -10 -9 ---------- Run | Yrd Mat Min Mat Machines Disabled 1 | . . . 1 Max in Single Turn 1 | . . . 1 Machines Repaired . | . . . . Machines Dismantled . | . . . . Machines Sabotaged . | . . . . Overloaded Fab Kills . | . . . . Hacking | -11 -10 -10 -9 --------- Run | Yrd Mat Min Mat Machines Accessed 20 | . 10 . 10 Terminals 15 | . 7 . 8 Fabricators . | . . . . Repair Stations 1 | . 1 . . Recycling Units 3 | . 2 . 1 Scanalyzers 1 | . . . 1 Garrison Access . | . . . . Total Hacks 70 | . 37 . 33 Successful 36 | . 20 . 16 Failed 33 | . 17 . 16 Catastrophic 1 | . . . 1 Database Lockouts 1 | . . . 1 Manual 49 | . 27 . 22 Terminals 57 | . 29 . 28 Fabricators . | . . . . Repair Stations 1 | . 1 . . Recycling Units 9 | . 7 . 2 Scanalyzers 3 | . . . 3 Garrison Access . | . . . . Terminal Hacks 10 | . 5 . 5 Robot Analysis 2 | . 2 . . Prototype ID Bank 2 | . 1 . 1 Terminal Index 2 | . 1 . 1 Alert Level 1 | . . . 1 Hauler Manifests 2 | . 1 . 1 Registered Prototypes 1 | . . . 1 Fabricator Hacks . | . . . . Repair Station Hacks 1 | . 1 . . Refit 1 | . 1 . . Recycling Unit Hacks 3 | . 2 . 1 Retrieve Components 3 | . 2 . 1 Scanalyzer 3 | . . . 3 Retrieve Study 3 | . . . 3 Garrison Access Hacks . | . . . . Unauthorized Hacks 19 | . 12 . 7 Terminals 18 | . 12 . 6 Track 2 | . 1 . 1 Assimilate 1 | . 1 . . Botnet 4 | . 4 . . Operators 2 | . 1 . 1 Skim 9 | . 5 . 4 Fabricators . | . . . . Repair Stations . | . . . . Recycling Units 1 | . . . 1 Recyclers 1 | . . . 1 Scanalyzers . | . . . . Garrison Access . | . . . . Data Cores Recovered . | . . . . Used . | . . . . Hacking Detections 19 | . 9 . 10 Full Trace Events 3 | . 2 . 1 Feedback Events . | . . . . Feedback Blocked . | . . . . Robot Schematics Acquired . | . . . . Robots Built . | . . . . Authchips . | . . . . Time . | . . . . Total Robot Build Rating . | . . . . Part Schematics Acquired . | . . . . Parts Built . | . . . . Authchips . | . . . . Time . | . . . . Total Part Build Rating . | . . . . Part Studies Acquired 3 | . . . 3 Parts Repaired . | . . . . Time . | . . . . Parts Recycled . | . . . . Recycled Matter . | . . . . Retrieved Matter . | . . . . Retrieved Components . | . . . . Parts Scanalyzed . | . . . . Part Schematics Acquired . | . . . . Parts Damaged . | . . . . Bothacking | -11 -10 -10 -9 ------------ Run | Yrd Mat Min Mat Used RIF Installer . | . . . . Robots Hacked . | . . . . Non-combat . | . . . . Combat . | . . . . Robot Hacks Applied . | . . . . Relay Couplers Released . | . . . . Fabnet Peak Effective % . | . . . . Robots Rewired . | . . . . Allies Hacked . | . . . . Hacks Repelled . | . . . . Allies | -11 -10 -10 -9 -------- Run | Yrd Mat Min Mat Total Allies 2 | . 1 1 . Largest Group 2 | . 1 2 . Highest-Rated Group 36 | . 10 36 . Highest-Rated Ally 26 | . 10 26 . Total Orders 2 | . . 2 . STAY 1 | . . 1 . FOLLOW 1 | . . 1 . Ally Attacks 7 | . . 7 . Total Damage 126 | . . 126 . Kills 2 | . . 2 . Allies Corrupted . | . . . . Allies Melted . | . . . . Intel | -11 -10 -10 -9 ------- Run | Yrd Mat Min Mat Active Infowar (turns) 1077 | . 38 849 190 Structural 38 | . 38 . . Seismic 1039 | . . 849 190 Robot Analysis Total 2 | . 2 . . Derelict Logs Recovered 1 | . . 1 . Drone Launches . | . . . . Drone Recoveries . | . . . . Exploration | -11 -10 -10 -9 ------------- Run | Yrd Mat Min Mat Turns Passed 2260 | 22 480 917 841 Spaces Moved 1817 | 32 504 646 635 Core 517 | 32 355 . 130 Treads . | . . . . Legs . | . . . . Wheels . | . . . . Hover 1300 | . 149 646 505 Flight . | . . . . Fastest Speed 50 | 50 50 116 50 Average Speed 88 | 50 70 116 76 Slowest Speed 180 | 50 136 180 180 Overloaded Moves . | . . . . Propulsion Burnouts . | . . . . Robots Hopped . | . . . . Potential Cave-ins . | . . . . Cave-ins Triggered . | . . . . Exploration Rate (%) 58 | 3 85 83 62 Regions Visited 3 Branch Regions 1 Pre-discovered Areas 2 | . . 2 . Known Exits Taken . | . . . . Unknown Exits Taken 3 | 1 1 1 . Scrap Searched . | . . . . Spaces Dug . | . . . . Terrain Destroyed 3 | . . . 3 Melee . | . . . . Projectile . | . . . . AOE 3 | . . . 3 Terrain Rammed . | . . . . Walls Destroyed . | . . . . Machines Disabled . | . . . . Actions | -11 -10 -10 -9 --------- Run | Yrd Mat Min Mat Total 2252 | 37 590 776 849 Wait 202 | . 19 109 74 Move 1814 | 31 503 645 635 Hop . | . . . . Pick Up 24 | 5 7 1 11 Fast Attach 13 | . 9 . 4 Attach 20 | . 7 1 12 Detach 10 | . 7 . 3 Swap 17 | . 5 1 11 Drop 17 | 1 8 1 7 Fire 78 | . 23 18 37 Melee 55 | . . . 55 Ram 2 | . 2 . . Kick . | . . . . Crush . | . . . . Escape Stasis . | . . . . Rewire . | . . . . Trap . | . . . . Miscellaneous . | . . . . Route ------- -11/Scrapyard -10/Materials (discovered 4 exits: *Mat x2 / [*Min x2]) -10/Mines -9/Materials (discovered 3 exits: [*Mat x2] / [*Min]) History --------- Turn | Location | Event 2 | -11/Scrapyard | Met Revision 17 5 | -11/Scrapyard | Discovered new exit (range 16) 23 | -11/Scrapyard | Entered Materials 130 | -10/Materials | Discovered new exit (range 15) 146 | -10/Materials | Discovered new exit (range 14) 222 | -10/Materials | Core integrity fell below 50% 249 | -10/Materials | Core integrity fell below 20% 363 | -10/Materials | Build established: Mutant 371 | -10/Materials | Discovered new exit (range 14) 481 | -10/Materials | Discovered new exit (range 16) 503 | -10/Materials | Entered Mines 503 | -10/Mines | Accompanied by 1 ally 507 | -10/Mines | Met a Derelict bent on vengeance 512 | -10/Mines | Escorted by a lone wolf Derelict 532 | -10/Mines | Learned location of Storage (-8) 570 | -10/Mines | Assembled infested the area 1007 | -10/Mines | Learned location of Zion (-7) 1395 | -10/Mines | Discovered new exit (range 12) 1420 | -10/Mines | Entered Materials 1420 | -9/Materials | Evolved 2 slots: Propulsion x2 1623 | -9/Materials | Central database locked down 1690 | -9/Materials | Lost 3 parts (1n1u1w) 1738 | -9/Materials | Discovered new exit (range 7) 1835 | -9/Materials | Discovered new exit (range 16) 1932 | -9/Materials | Lost 3 parts (1p2n) 2065 | -9/Materials | Discovered new exit (range 9) 2148 | -9/Materials | Core integrity fell below 50% 2251 | -9/Materials | Core integrity fell below 20% 2261 | -9/Materials | Destroyed by G-34 Mercenary with Small Laser Last Messages --------------- 02215_ G-34 Mercenary destroyed. 02221_ B-36 Bruiser destroyed. 02224_ G-34 Mercenary destroyed. 02228_ Acquired Lgt. Armor Plating. 02237_ Connecting with Terminal... 02239_ G-34 Mercenary suffers critical hit (Smash). 02239_ Destroyed Aluminum Leg. 02239_ Destroyed Heat Sink. 02239_ G-34 Mercenary system corrupted by crushing effect. 02239_ G-34 Mercenary knocked back. 02240_ G-34 Mercenary system terminally corrupted. 02248_ Flail destroyed. 02249_ Core Shielding destroyed. 02249_ Integrated Corrupted Katana (+1). 02253_ B-36 Bruiser destroyed. 02258_ Destroyed Heat Sink. 02261_ Acquired Hammer. Map ----- +----------------------------------------------------+ | | | | | | | | | | | | | | | | | | | | | | | | | ?????????????????????????????????????????????????? | | ?????????????????????????????????????????????????? | | ?????????????????????????????????????????????????? | | ?????????????????????????????????????????????????? | | ?????????????????????????????????????????????????? | | ??????????????????????###############????????????? | | ??????????????????????# ^ ?????????????? | | ??????????????????????+ ^ ??????????????? | | ?#####????????????????# ???????????????? | | ?# #????????????????# ^ """ ???????????????? | | ?# < #????????????????#" """ #?????????????? | | ?# #????????????????#T """ #?????????????? | | ?# %##################" ! +?????????????? | | ?# =*%[! * @%[ #?????????????? | | ## !!%=]* =g +?????????????? | | %*###################### ######?????????????? | | #????????????????????? #??????????????????? | | ## #?????????????????????? #??????????????????? | | ## #??????????????????????? #??????????????????? | | ###?????????????????????? ??????????????????? | | ????????????????? #?????????????????? | | ??????????????#?????????????????? | | ?????????????????????????????????? | | ######+######/???????????o?????????????????????? | | #??????????????????????????????????????????????? | | #??????????????????????????????????????????????? | | #??????????????????????????????????????????????? | | #??????????????????????????????????????????????? | | #??????????????????????????????????????????????? | | #??????????????????????????????????????????????? | | #??????????????????????????????????????????????? | | #??????????????????????????????????????????????? | | ##########?????????????????????????????????????? | | # """ ?????????????????????????????????????? | | + "T" ?????????????????????????????????????? | | # ! #????????????????????????????????????? | | # #????????????????????????????????????? | | #?#########????????????????????????????????????? | +----------------------------------------------------+ Best States ------------- Heat Dissipation 38 Energy Generation 10 Energy Capacity 125 Matter Stores 300 Matter Capacity 300 Sight Range 16 Terrain Scan Density 10 Armor Coverage 150 Core Shielding 20 Evasion (%) 53 Melee Accuracy 5 Item Schematics ----------------- None Robot Schematics ------------------ None Fabricated ------------ Nothing Repaired ---------- Nothing Studied --------- Hover Unit | -9/Materials | Hacked Rocket Launcher | -9/Materials | Hacked Lgt. EM Pulse Cannon | -9/Materials | Hacked Alien Tech Used ----------------- None Achievements -------------- None Challenges ------------ None Game ------ Seed ModifiedFortressLattice Manual? 0 Play Time 00:22:22 Cumulative 442.4 hours Start 2025.10.26 @ 06:24:59 End 2025.10.26 @ 18:14:13 Sessions 2 Manual Loads 0 Difficulty Rogue Special Mode None Game No. 231 Rogue 231 Adventurer 0 Explorer 0 Win Type - Total 20 Types 12/1/5/1/0/0/0/1/0/0 Lore% 91 Gallery% 85 Achievement% 76 Wizard Run 0 Options --------- Layout 2 ASCII 0 Keyboard 1 Movement Vi Keybinds 0 Fullscreen 1 Font 28/Terminus Map View 50x52 Zoom Use 0% Tactical HUD 1 Map Filters NONE Filters NONE Steam 1 RUN: 4f5394de-f42f-45fa-bb4f-04fe1bbf5436